bitfinex-derivatives/quotes_ETHF0:USTF0_20250213
["timestamp","ask_amount","ask_price","bid_price","bid_amount"]
[1739407050882,1.0288813,2730.0,2729.9,0.73259]
[1739407051076,1.0288813,2730.0,2729.7,40.8]
[1739407051273,1.7614513,2730.0,2729.8,0.7326]
[1739407051481,1.29047,2730.0,2729.8,0.7326]
[1739407051679,1.0288813,2730.0,2729.8,0.73262]
[1739407052074,1.29047,2730.0,2729.8,0.73261]
[1739407052274,0.73259,2729.9,2729.7,41.53263]
[1739407052480,1.0288813,2730.0,2729.7,40.8]
[1739407052679,0.73262,2729.8,2729.7,40.8]
[1739407052875,2.44962,2729.8,2729.7,40.8]
[1739407053578,1.717,2729.8,2729.7,41.53264]
[1739407055081,1.717,2729.8,2729.7,40.8]
[1739407055279,2.44962,2729.8,2729.7,40.8]
[1739407055485,1.717,2729.8,2729.7,41.53264]
[1739407055681,2.44962,2729.8,2729.7,40.8]
[1739407055887,3.01652,2729.8,2729.7,40.8]
[1739407056589,2.2839,2729.8,2729.7,41.53264]
[1739407058184,0.5666,2730.2,2729.7,40.8]
[1739407058383,5.5189,2730.4,2730.3,0.73248]
[1739407058784,5.5189,2730.4,2729.7,40.8]
[1739407058785,5.5189,2730.4,2730.0,1.0981]
[1739407058989,0.73252,2730.2,2730.0,1.83065]
[1739407059183,5.5189,2730.4,2730.0,1.0981]
[1739407059388,0.73258,2730.0,2729.7,40.8]
[1739407059583,0.73262,2729.8,2729.7,40.8]
[1739407059888,2.44862,2729.8,2729.7,40.8]
[1739407060292,1.716,2729.8,2729.7,41.53264]
[1739407061889,2.44862,2729.8,2729.7,40.8]
[1739407062192,1.716,2729.8,2729.7,41.53264]
[1739407062999,4.9238,2730.1,2730.0,0.73256]
[1739407063296,1.716,2730.1,2730.0,0.73256]
[1739407064089,1.716,2730.3,2729.9,3.16739154]
[1739407064287,1.716,2730.3,2730.2,0.73251]
[1739407065388,1.716,2730.3,2730.0,4.3578]
[1739407065588,2.4485,2730.3,2730.1,0.73252]
[1739407065896,1.716,2730.3,2730.2,0.73251]
[1739407067091,2.18867652,2730.3,2730.2,0.73251]
[1739407067296,0.47267652,2730.3,2730.2,0.73251]
[1739407067491,0.47267652,2730.3,2730.2,3.89990154]
[1739407067694,5.65622,2730.6,2730.3,0.73246]
[1739407067997,0.18683009,2733.4,2731.4,3.2078]
[1739407068188,0.5473,2733.9,2733.3,3.16739154]
[1739407068493,0.914,2733.9,2733.8,6.37519154]
[1739407068687,0.914,2733.9,2733.8,3.93934]
[1739407068688,0.5473,2733.9,2733.8,3.93934]
[1739407068894,1.716,2734.3,2733.8,6.37519154]
[1739407069098,1.716,2734.3,2734.2,3.93924]
[1739407069297,1.72148978,2734.3,2734.2,3.93924]
[1739407069692,1.72148978,2734.3,2734.2,3.2078]
[1739407069891,1.72148978,2734.3,2734.2,3.93924]
[1739407070795,1.72148978,2734.3,2734.2,3.2078]
[1739407071091,1.72148978,2734.3,2734.2,3.93924]
[1739407071697,0.00548978,2734.3,2734.2,3.93924]
[1739407074898,0.00548978,2734.3,2733.9,3.9393]
[1739407075103,0.00548978,2734.3,2733.9,3.2078]
[1739407076598,0.73689978,2734.3,2733.9,3.2078]
[1739407076793,0.73691978,2734.3,2733.9,3.2078]
[1739407076999,0.00548978,2734.3,2733.9,3.2078]
[1739407077400,0.00548978,2734.3,2733.9,3.93931]
[1739407077799,0.73144,2734.2,2733.9,3.2078]
[1739407077999,0.00548978,2734.3,2733.9,3.2078]
[1739407078201,0.73691978,2734.3,2733.9,3.2078]
[1739407078902,0.73690978,2734.3,2733.9,3.2078]
[1739407079101,7.16566493,2734.1,2733.8,0.00548978]
[1739407079297,0.73152,2733.9,2733.8,0.00548978]
[1739407081104,0.73166,2733.4,2733.0,3.93954]
[1739407081301,1.714,2733.3,2733.0,3.2078]
[1739407081501,2.44569,2733.3,2733.0,3.2078]
[1739407081799,0.73173,2733.1,2733.0,3.2078]
[1739407081999,1.714,2733.3,2732.1,5.78782493]
[1739407082000,0.73181,2732.9,2732.3,3.2078]
[1739407082202,0.73176,2733.0,2732.6,3.93965]
[1739407082396,0.00548978,2732.9,2732.8,0.7318]
[1739407082601,0.00548978,2732.9,2732.8,3.9396]
[1739407083000,0.00548978,2732.9,2732.8,3.2078]
[1739407083705,0.73727978,2732.9,2732.8,3.2078]
[1739407083898,0.73185,2732.7,2732.4,3.2078]
[1739407084105,1.714,2732.6,2732.4,3.2078]
[1739407084306,1.714,2732.6,2732.4,3.93971]
[1739407084699,1.714,2732.6,2732.4,3.2078]
[1739407084700,2.44588,2732.6,2732.4,3.2078]
[1739407084899,1.714,2732.6,2732.4,3.2078]
[1739407085099,2.44588,2732.6,2732.4,3.2078]
[1739407086310,1.714,2732.6,2732.1,44.0078]
[1739407086510,1.714,2732.6,2732.1,44.7398]
[1739407086511,0.73191,2732.5,2732.1,44.7398]
[1739407086911,0.73192,2732.4,2732.1,44.7398]
[1739407087305,0.73189,2732.5,2732.1,44.0078]
[1739407087509,0.73189,2732.5,2732.1,44.73978]
[1739407088207,1.714,2732.6,2732.1,44.0078]
[1739407088407,0.73197,2732.2,2732.1,3.2078]
[1739407089209,0.73208,2731.8,2731.7,3.2078]
[1739407090414,0.73208,2731.8,2731.7,44.0078]
[1739407090610,1.714,2731.9,2731.7,44.0078]
[1739407090912,2.44607,2731.9,2731.7,44.0078]
[1739407091119,2.44606,2731.9,2731.7,44.0078]
[1739407093919,2.44607,2731.9,2731.7,44.0078]
[1739407094534,0.73208,2731.8,2731.7,44.0078]
[1739407095533,2.44607,2731.9,2731.7,44.0078]
[1739407095734,3.2078,2732.3,2731.7,44.0078]
[1739407095934,0.73202,2732.1,2731.8,0.73207]
[1739407096232,0.73204,2732.0,2731.8,0.73207]
[1739407096434,0.73207,2731.9,2731.7,44.0078]
[1739407096932,1.714,2732.0,2731.7,44.0078]
[1739407097127,0.73207,2731.9,2731.7,44.0078]
[1739407097327,1.714,2732.0,2731.7,44.0078]
[1739407097829,0.73208,2731.8,2731.7,44.0078]
[1739407098031,0.73207,2731.9,2731.7,44.0078]
[1739407098229,1.714,2732.0,2731.7,44.0078]
[1739407098636,0.73208,2731.8,2731.7,44.0078]
[1739407098834,0.73208,2731.9,2731.7,44.0078]
[1739407099134,2.44603,2732.0,2731.8,0.73207]
[1739407099534,2.44604,2732.0,2731.8,0.73207]
[1739407100931,2.44604,2732.0,2731.7,44.0078]
[1739407101138,1.714,2732.0,2731.7,44.0078]
[1739407101435,0.73208,2731.8,2731.7,3.2078]
[1739407122251,2.18050804,2732.0,2731.4,3.2078]
[1739407122456,0.73215,2731.6,2731.4,3.93998]
[1739407122757,1.714,2731.5,2731.4,3.93998]
[1739407131154,0.46650804,2731.9,2731.4,3.2078]
[1739407131361,1.714,2731.8,2731.7,3.2078]
[1739407131563,1.714,2731.8,2731.7,3.93989]
[1739407131861,2.44608,2731.8,2731.7,3.2078]
[1739407132166,1.714,2731.8,2731.4,3.2078]
[1739407132357,0.73217,2731.5,2731.4,3.2078]
[1739407132862,0.73222,2731.3,2731.1,4.3054]
[1739407133064,2.44622,2731.3,2731.1,4.3054]
[1739407133561,2.44622,2731.3,2731.1,3.7545]
[1739407133763,0.73224,2731.2,2731.1,3.2078]
[1739407134656,1.714,2731.3,2731.1,3.2078]
[1739407134859,2.44624,2731.3,2731.1,3.2078]
[1739407135054,1.714,2731.3,2731.1,3.2078]
[1739407135565,0.73224,2731.2,2731.1,3.2078]
[1739407135962,1.714,2731.3,2730.8,3.2078]
[1739407136966,0.73232,2730.9,2730.8,3.2078]
[1739407137167,0.73231,2731.0,2730.8,3.2078]
[1739407137466,0.5547,2731.1,2730.8,3.2078]
[1739407137670,0.73226,2731.2,2730.8,3.2078]
[1739407137864,1.714,2731.3,2731.0,0.73228]
[1739407138967,1.714,2731.3,2730.9,0.5681]
[1739407139267,1.714,2731.3,2731.0,0.73228]
[1739407139660,1.714,2731.3,2730.9,0.5681]
[1739407139661,1.714,2731.3,2731.1,40.8]
[1739407139862,2.44623,2731.3,2731.1,40.8]
[1739407140269,2.44622,2731.3,2731.1,40.8]
[1739407140865,1.714,2731.3,2731.1,40.8]
[1739407141067,1.714,2731.3,2731.1,41.53226]
[1739407141261,2.44622,2731.3,2731.1,40.8]
[1739407142162,0.73224,2731.2,2731.1,40.8]
[1739407142362,0.73224,2731.2,2730.9,1.30041]
[1739407142565,1.714,2731.3,2730.8,3.2078]
[1739407142770,0.73231,2731.0,2730.8,3.2078]
[1739407143067,1.714,2731.3,2730.8,3.2078]
[1739407143271,0.73232,2730.9,2730.8,3.2078]
[1739407143466,0.73231,2731.0,2730.8,3.2078]
[1739407143663,0.73232,2730.9,2730.8,3.2078]
[1739407144161,1.714,2731.3,2730.8,3.2078]
[1739407144372,0.73231,2731.0,2730.8,3.2078]
[1739407144566,3.2078,2731.1,2730.7,0.5845]
[1739407144764,0.73235,2730.8,2730.7,0.5845]
[1739407144965,0.73238,2730.7,2730.6,2.25277856]
[1739407145165,0.73238,2730.7,2730.5,3.2078]
[1739407145468,0.73238,2730.7,2730.6,40.8]
[1739407145667,0.73238,2730.7,2730.5,3.2078]
[1739407146274,0.73238,2730.7,2730.5,44.0078]
[1739407146466,0.73238,2730.7,2730.5,43.6412]
[1739407146767,2.44537,2730.8,2730.5,44.37362]
[1739407147666,0.73239,2730.7,2730.5,2.8412]
[1739407148273,0.73239,2730.7,2730.5,3.57363]
[1739407148770,0.73239,2730.7,2730.5,2.8412]
[1739407149376,0.7324,2730.6,2730.5,2.8412]
[1739407149575,0.73008829,2730.6,2730.5,2.8412]
[1739407151964,1.713,2730.8,2730.3,0.5721]
[1739407151965,0.73246,2730.4,2730.3,0.5721]
[1739407152365,0.73247,2730.4,2730.2,44.0078]
[1739407152573,1.713,2730.3,2730.2,44.74031]
[1739407152875,1.713,2730.3,2730.2,3.94031]
[1739407153176,2.39381,2731.0,2730.7,0.73235]
[1739407153469,2.39381,2731.0,2730.8,40.8]
[1739407153675,1.713,2730.9,2730.8,40.8]
[1739407153869,1.27781,2731.0,2730.8,41.3865]
[1739407154071,1.713,2730.9,2730.8,42.11885]
[1739407154272,1.713,2730.9,2730.8,41.3865]
[1739407154473,1.713,2730.9,2730.8,0.5865]
[1739407154970,1.713,2730.9,2730.8,42.11885]
[1739407155171,1.713,2730.9,2730.8,42.11884]
[1739407155874,1.713,2730.9,2730.8,41.3865]
[1739407156072,1.713,2730.9,2730.8,42.11885]
[1739407156278,1.713,2731.0,2730.8,41.3865]
[1739407156573,1.713,2731.0,2730.9,0.73231]
[1739407157466,1.713,2731.0,2730.8,44.5943]
[1739407157670,1.713,2731.0,2730.9,0.73232]
[1739407157873,1.713,2731.0,2730.8,44.5943]
[1739407158871,1.713,2731.0,2730.8,45.32665]
[1739407159078,1.713,2731.0,2730.9,0.73232]
[1739407161078,2.17994036,2731.3,2730.8,3.7943]
[1739407161281,0.73231,2731.0,2730.8,4.52664]
[1739407161575,0.73231,2731.0,2730.8,45.32664]
[1739407162580,2.17994036,2731.3,2730.8,44.5943]
[1739407162880,0.73232,2730.9,2730.8,3.7943]
[1739407163973,0.7323,2731.0,2730.8,4.52664]
[1739407164175,0.73229,2731.1,2730.8,4.52664]
[1739407164573,2.17994036,2731.3,2730.8,3.7943]
[1739407164974,0.73228,2731.1,2730.8,3.7943]
[1739407165284,0.73231,2731.0,2730.8,4.52664]
[1739407165478,2.17994036,2731.3,2730.8,3.2078]
[1739407165679,0.7324,2730.7,2730.5,3.2078]
[1739407165886,2.4454,2730.7,2730.5,3.2078]
[1739407166182,2.4454,2730.7,2730.5,44.0078]
[1739407166683,2.44539,2730.7,2730.5,44.0078]
[1739407167086,1.713,2730.7,2730.5,44.0078]
[1739407167385,0.7324,2730.6,2730.5,44.0078]
[1739407168286,0.7324,2730.6,2730.5,3.2078]
[1739407168979,1.713,2730.7,2730.5,3.2078]
[1739407169179,2.44539,2730.7,2730.5,3.2078]
[1739407169684,2.4454,2730.7,2730.5,3.2078]
[1739407170286,1.713,2730.7,2730.5,3.2078]
[1739407170482,1.713,2730.7,2730.3,40.8]
[1739407170682,1.713,2730.7,2730.2,0.5843]
[1739407170683,0.73248,2730.3,2730.2,0.5843]
[1739407172178,5.46217205,2730.6,2730.0,40.8]
[1739407172378,0.5811,2730.2,2730.0,40.8]
[1739407172579,2.2941,2730.2,2730.0,41.53256]
[1739407172790,3.02663,2730.2,2730.0,40.8]
[1739407173379,3.02663,2730.2,2729.9,3.94038]
[1739407173783,2.2941,2730.2,2730.0,40.8]
[1739407173986,0.73255,2730.1,2730.0,40.8]
[1739407175784,0.73255,2730.1,2729.9,3.2078]
[1739407175785,2.76104036,2730.2,2729.9,3.2078]
[1739407175981,0.73256,2730.0,2729.9,3.2078]
[1739407176683,2.76104036,2730.2,2729.9,3.2078]
[1739407176890,0.73256,2730.0,2729.9,3.2078]
[1739407177685,0.73264,2729.7,2729.6,44.6037]
[1739407177986,2.44464,2729.7,2729.6,40.8]
[1739407179085,0.73267,2729.6,2729.3,3.94055]
[1739407179387,0.73268,2729.6,2729.3,3.94055]
[1739407179588,0.73268,2729.6,2729.3,3.94054]
[1739407179777,0.73269,2729.6,2729.3,3.94054]
[1739407180381,0.73269,2729.6,2729.3,44.74054]
[1739407180892,0.73268,2729.6,2729.3,44.74054]
[1739407181787,1.30718,2729.6,2729.3,44.74055]
[1739407181993,1.30718,2729.6,2729.3,44.74054]
[1739407182192,1.30719,2729.6,2729.3,44.74055]
[1739407182393,0.7327,2729.5,2729.3,44.0078]
[1739407182588,0.73273,2729.4,2729.3,44.0078]
[1739407183286,0.73273,2729.4,2729.3,3.2078]
[1739407184195,0.5745,2729.6,2729.3,3.2078]
[1739407184384,0.73271,2729.5,2729.3,3.2078]
[1739407184791,0.5745,2729.6,2729.3,3.2078]
[1739407184992,0.5745,2729.6,2729.0,4.51362]
[1739407185188,0.5745,2729.6,2729.0,3.7808]
[1739407185392,0.73279,2729.2,2729.0,3.7808]
[1739407185591,1.712,2729.1,2729.0,3.7808]
[1739407186295,1.712,2729.1,2729.0,4.51363]
[1739407186495,1.712,2729.1,2729.0,3.7808]
[1739407186989,1.712,2729.1,2728.5,1.83242]
[1739407186990,0.73283,2729.0,2728.5,3.2078]
[1739407187189,4.87621169,2729.1,2728.6,41.3431]
[1739407187190,0.73287,2728.9,2728.6,41.3431]
[1739407187389,0.73287,2728.9,2728.6,42.07603]
[1739407187790,1.89825,2729.0,2728.7,0.7329]
[1739407188189,1.89825,2729.0,2728.6,42.07602]
[1739407188190,0.73286,2728.9,2728.6,42.07602]
[1739407188694,1.89825,2729.0,2728.7,0.73291]
[1739407189782,1.89825,2729.0,2728.6,42.07602]
[1739407190094,0.73287,2728.9,2728.6,42.07602]
[1739407190298,1.1654,2729.0,2728.6,41.3431]
[1739407190798,0.73291,2728.8,2728.6,41.3431]
[1739407191293,1.1654,2729.0,2728.6,41.3431]
[1739407191294,0.73291,2728.7,2728.6,41.3431]
[1739407191683,1.1654,2729.0,2728.6,0.5431]
[1739407192193,0.73291,2728.7,2728.6,41.3431]
[1739407192389,0.73291,2728.7,2728.6,0.5431]
[1739407193289,1.1654,2729.0,2728.6,0.5431]
[1739407193590,0.73291,2728.7,2728.6,0.5431]
[1739407196193,0.73294,2728.6,2728.5,3.2078]
[1739407196391,2.44494,2728.6,2728.5,3.2078]
[1739407197701,1.712,2728.6,2728.5,3.2078]
[1739407198097,2.44494,2728.6,2728.5,3.2078]
[1739407198499,1.712,2728.6,2728.5,3.2078]
[1739407198898,2.44494,2728.6,2728.5,3.2078]
[1739407199391,1.712,2728.6,2728.5,3.2078]
[1739407199997,2.44495,2728.6,2728.4,40.8]
[1739407200200,1.712,2728.6,2728.4,40.8]
[1739407200404,0.73298,2728.5,2728.2,4.53553]
[1739407200901,0.73298,2728.5,2728.3,40.8]
[1739407201099,1.712,2728.6,2728.3,40.8]
[1739407201294,0.73299,2728.4,2728.3,40.8]
[1739407201498,0.73299,2728.5,2728.2,3.8025]
[1739407201697,0.73299,2728.5,2728.2,4.53554]
[1739407201998,0.73299,2728.5,2728.2,45.33554]
[1739407202694,1.712,2728.6,2728.2,45.33554]
[1739407203309,3.16421169,2728.5,2728.2,3.8025]
[1739407203602,0.5657,2728.4,2727.9,3.7695]
[1739407203805,0.73308,2728.1,2727.9,3.7695]
[1739407204004,1.712,2728.0,2727.9,3.7695]
[1739407204907,1.712,2728.0,2727.9,4.50263]
[1739407205402,1.712,2728.0,2727.9,3.7695]
[1739407205612,1.712,2728.0,2727.9,4.50263]
[1739407205903,0.00548978,2728.4,2728.3,0.73302]
[1739407206100,1.71748978,2728.4,2728.3,0.73302]
[1739407206502,0.00548978,2728.4,2728.3,0.73302]
[1739407206701,1.71748978,2728.4,2728.3,41.53302]
[1739407207510,19.204,2728.8,2728.3,40.8]
[1739407207706,19.204,2728.8,2728.7,0.73291]
[1739407208012,20.916,2728.8,2728.7,0.73291]
[1739407208207,1.712,2728.8,2728.6,3.2078]
[1739407208507,1.712,2728.8,2728.7,0.73291]
[1739407208906,0.00548978,2729.0,2728.7,3.16421169]
[1739407209211,0.00548978,2729.0,2728.9,3.94066]
[1739407209602,0.00548978,2729.0,2728.9,4.47966]
[1739407209803,0.00548978,2729.0,2728.9,3.7468]
[1739407210004,0.00548978,2729.0,2728.9,4.47966]
[1739407210408,0.00548978,2729.0,2728.9,3.7468]
[1739407210709,0.00548978,2729.0,2728.9,4.47966]
[1739407210909,0.00548978,2729.0,2728.9,5.04036]
[1739407212309,19.204,2729.8,2728.9,5.04036]
[1739407212517,1.712,2729.7,2729.3,3.2078]
[1739407212706,19.204,2729.8,2729.6,0.73267]
[1739407212908,1.712,2729.7,2729.6,0.73267]
[1739407213408,0.00548978,2729.9,2729.6,3.2078]
[1739407213715,0.00548978,2729.9,2729.8,0.73262]
[1739407214011,0.00548978,2729.9,2729.8,44.69683169]
[1739407215211,1.711,2730.4,2729.8,43.96421169]
[1739407215405,1.711,2730.4,2730.3,0.73248]
[1739407215605,0.46553669,2730.7,2730.2,3.2078]
[1739407215803,0.46553669,2730.7,2730.6,3.2078]
[1739407216005,0.73252,2730.2,2730.0,3.2078]
[1739407216408,1.711,2730.4,2730.0,3.2078]
[1739407216409,0.7325,2730.3,2730.0,3.2078]
[1739407216609,1.71648978,2730.4,2730.0,3.2078]
[1739407216812,0.00548978,2730.4,2730.3,3.94028]
[1739407217107,0.5927,2731.3,2730.8,0.73235]
[1739407217315,2.44326,2731.2,2730.8,0.73235]
[1739407217713,1.711,2731.2,2730.8,0.73235]
[1739407218013,2.44326,2731.2,2730.7,3.2078]
[1739407218220,1.711,2731.2,2730.8,0.73234]
[1739407218608,1.711,2731.2,2730.7,3.2078]
[1739407218810,1.711,2731.2,2730.8,0.73234]
[1739407219113,1.711,2731.2,2730.7,3.2078]
[1739407219316,0.55778978,2731.3,2730.9,0.73231]
[1739407219509,1.711,2731.1,2730.8,0.73233]
[1739407220416,1.711,2731.1,2730.7,3.94015]
[1739407220718,1.711,2731.1,2730.7,3.2078]
[1739407220912,1.711,2731.1,2730.1,3.7618]
[1739407220913,3.16421169,2730.9,2730.1,3.7618]
[1739407221417,0.73242,2730.6,2730.1,4.49433]
[1739407221609,1.71,2730.5,2730.2,0.7325]
[1739407222015,1.71,2730.5,2730.1,3.7618]
[1739407222216,1.71,2730.5,2730.1,4.49432]
[1739407222420,2.44244,2730.5,2730.1,3.2078]
[1739407222617,1.71,2730.5,2730.1,3.94033]
[1739407223019,1.71,2730.5,2730.1,3.2078]
[1739407223318,1.71,2730.5,2730.1,3.94033]
[1739407223523,2.44244,2730.5,2730.1,3.94033]
[1739407224919,0.73247,2730.4,2730.1,3.2078]
[1739407226234,2.44245,2730.5,2730.1,3.94033]
[1739407227133,0.73247,2730.4,2730.1,3.94034]
[1739407227422,1.71,2730.5,2730.1,3.2078]
[1739407227623,0.5841,2730.7,2730.1,6.37201169]
[1739407227828,0.5841,2730.7,2730.6,0.7324]
[1739407228131,3.16421169,2731.2,2730.7,0.73237]
[1739407228332,1.71,2730.9,2730.6,0.73239]
[1739407228632,1.71,2730.9,2730.4,3.2078]
[1739407229331,1.71,2730.9,2730.4,3.7602]
[1739407229533,2.44233,2730.9,2730.5,0.73241]
[1739407229723,1.71,2730.9,2730.5,0.73241]
[1739407229922,0.73235,2730.8,2730.4,4.49263]
[1739407230120,1.71,2730.9,2730.4,3.7602]
[1739407230431,0.73243,2730.5,2730.4,3.7602]
[1739407230626,0.73249,2730.3,2730.1,3.2078]
[1739407230926,1.71,2730.2,2730.1,3.2078]
[1739407231729,1.71,2730.2,2730.1,3.94034]
[1739407231934,1.71,2730.2,2730.1,3.2078]
[1739407232235,1.71,2730.2,2730.1,3.94034]
[1739407234032,1.71,2730.2,2730.1,3.2078]
[1739407234234,1.71,2730.2,2730.1,3.94034]
[1739407234436,0.5426,2730.8,2730.1,7.10455169]
[1739407234744,1.71,2730.6,2730.5,0.73243]
[1739407236030,1.71,2730.6,2730.4,3.2078]
[1739407236434,1.71,2730.6,2730.5,0.73243]
[1739407236635,1.71,2730.6,2730.5,1.30743]
[1739407237540,1.71,2730.6,2730.5,0.575]
[1739407238041,1.71,2730.6,2730.5,1.30743]
[1739407241741,1.71,2730.6,2730.5,0.575]
[1739407242639,1.71,2730.6,2730.5,1.30743]
[1739407243237,1.71,2730.6,2730.5,0.575]
[1739407244440,1.71,2730.6,2730.5,1.30743]
[1739407251035,2.4424,2730.6,2730.5,1.30743]
[1739407251236,1.71,2730.6,2730.5,1.30743]
[1739407251941,0.46457665,2731.0,2730.9,0.73232]
[1739407252141,0.46457665,2731.0,2730.9,3.94012]
[1739407252441,1.708,2731.1,2731.0,0.7323]
[1739407252949,1.708,2731.1,2730.9,44.0078]
[1739407253151,2.44029,2731.1,2730.9,3.94011]
[1739407253342,1.708,2731.1,2730.9,3.94011]
[1739407253647,1.708,2731.1,2731.0,0.7323]
[1739407258044,1.708,2731.1,2730.9,3.2078]
[1739407258246,1.708,2731.1,2730.6,3.2078]
[1739407258436,0.7323,2731.0,2730.7,0.73236]
[1739407258638,0.5709,2730.9,2730.5,0.575]
[1739407258848,0.5709,2730.9,2730.6,3.2078]
[1739407259147,0.5709,2730.9,2730.7,0.73238]
[1739407259953,0.5709,2730.9,2730.8,0.73235]
[1739407260553,1.30324,2730.9,2730.6,3.94019]
[1739407260755,0.73237,2730.8,2730.6,3.2078]
[1739407260954,1.28107,2730.8,2730.6,3.9402]
[1739407261253,0.5487,2730.8,2730.6,3.9402]
[1739407261451,0.5487,2730.8,2730.6,3.2078]
[1739407261749,0.5487,2730.8,2730.7,0.73238]
[1739407262147,0.5487,2730.8,2730.6,3.94019]
[1739407262551,1.28106,2730.8,2730.6,3.2078]
[1739407262750,0.5487,2730.8,2730.6,3.94019]
[1739407264557,0.5487,2730.8,2730.6,3.2078]
[1739407264853,2.17257665,2731.1,2730.6,3.2078]
[1739407264854,0.46457665,2731.1,2730.9,0.73231]
[1739407265052,1.708,2731.0,2730.9,0.73231]
[1739407265356,1.708,2731.0,2730.7,0.5773]
[1739407265556,0.73233,2730.9,2730.6,3.2078]
[1739407265756,1.31083,2730.9,2730.6,3.94018]
[1739407267255,1.31083,2730.9,2730.6,3.94019]
[1739407267453,0.5739,2730.8,2730.6,3.94019]
[1739407268152,0.5739,2730.8,2730.7,0.73238]
[1739407269258,0.5739,2730.8,2730.6,3.94019]
[1739407269759,0.5739,2730.8,2730.7,0.73238]
[1739407272761,0.5739,2730.8,2730.6,3.2078]
[1739407272959,0.5739,2730.8,2730.6,3.94019]
[1739407273160,0.5739,2730.8,2730.6,3.2078]
[1739407273758,0.5739,2730.8,2730.6,3.94019]
[1739407274054,1.30625,2730.8,2730.6,3.94019]
[1739407274255,0.5739,2730.8,2730.6,3.94019]
[1739407274758,0.5739,2730.8,2730.7,0.73238]
[1739407275557,0.5739,2730.8,2730.6,3.94018]
[1739407276856,1.30626,2730.8,2730.6,3.2078]
[1739407277860,0.5739,2730.8,2730.6,3.2078]
[1739407278057,0.5739,2730.8,2729.9,3.2078]
[1739407278361,3.2078,2730.5,2729.9,3.7892]
[1739407278564,2.2838,2730.4,2730.0,40.8]
[1739407278764,0.73255,2730.1,2730.0,40.8]
[1739407279160,3.16421169,2730.3,2729.6,3.2078]
[1739407279361,0.73259,2729.9,2729.6,3.2078]
[1739407279561,2.43959,2729.9,2729.8,40.80548978]
[1739407279764,3.01639,2729.9,2729.8,40.80548978]
[1739407282361,3.01639,2729.9,2729.8,0.00548978]
[1739407285366,2.2838,2729.9,2729.8,0.00548978]
[1739407286665,3.01639,2729.9,2729.8,0.00548978]
[1739407295776,0.73275,2729.3,2729.2,3.2078]
[1739407295977,2.43875,2729.3,2729.2,3.2078]
[1739407298474,1.706,2729.3,2729.0,0.00548978]
[1739407298672,0.73281,2729.1,2729.0,0.00548978]
[1739407299778,6.73281,2729.1,2729.0,0.00548978]
[1739407300080,1.8321,2729.0,2728.2,3.2078]
[1739407300271,0.73299,2728.5,2728.2,44.0078]
[1739407300471,1.706,2728.4,2728.2,44.0078]
[1739407300878,2.439,2728.4,2728.2,44.0078]
[1739407301072,1.706,2728.4,2728.2,3.2078]
[1739407301273,2.439,2728.4,2728.2,3.2078]
[1739407301479,1.706,2728.4,2728.2,3.2078]
[1739407302675,3.16421169,2728.7,2728.2,3.2078]
[1739407302676,0.5723,2728.9,2728.2,3.2078]
[1739407302880,1.706,2728.8,2728.7,0.73291]
[1739407303280,1.706,2728.8,2728.6,1.83502]
[1739407303580,1.706,2728.8,2728.6,1.1021]
[1739407303770,2.43889,2728.8,2728.6,1.1021]
[1739407304275,1.706,2728.8,2728.1,40.8]
[1739407304482,3.71521169,2728.7,2728.2,3.7598]
[1739407304679,0.73299,2728.5,2728.2,3.7598]
[1739407304976,0.5518,2728.6,2728.2,3.7598]
[1739407305374,0.73297,2728.5,2728.2,3.7598]
[1739407305575,0.73298,2728.5,2728.2,3.7598]
[1739407306181,1.28475,2728.6,2728.2,3.7598]
[1739407306381,0.5518,2728.6,2728.2,3.7598]
[1739407306576,0.73297,2728.5,2728.2,3.7598]
[1739407307682,0.73299,2728.4,2728.2,3.7598]
[1739407307882,1.706,2728.3,2728.2,3.7598]
[1739407309472,1.706,2728.3,2728.2,4.49285]
[1739407309971,1.706,2728.3,2728.2,3.7598]
[1739407310176,1.706,2728.3,2728.2,4.49285]
[1739407310874,3.75421169,2729.0,2728.2,3.7598]
[1739407311184,0.73292,2728.7,2728.4,0.73298]
[1739407311379,0.7329,2728.8,2728.5,0.73296]
[1739407312579,1.706,2728.9,2728.5,3.2078]
[1739407312988,2.43888,2728.9,2728.6,0.73292]
[1739407313187,2.43888,2728.9,2728.6,0.5618]
[1739407313387,1.706,2728.9,2728.6,0.5618]
[1739407313587,0.7329,2728.8,2728.6,0.5618]
[1739407313888,0.73291,2728.7,2728.5,3.2078]
[1739407314981,1.706,2728.9,2728.5,3.2078]
[1739407315181,0.73294,2728.7,2728.5,3.2078]
[1739407315585,1.706,2728.9,2728.5,3.2078]
[1739407315784,4.30541169,2729.0,2728.5,3.2078]
[1739407315986,1.705,2728.9,2728.8,0.73287]
[1739407316389,19.7781,2729.2,2728.8,3.2078]
[1739407316587,19.7781,2729.2,2729.0,0.73281]
[1739407316588,1.705,2729.1,2729.0,0.73281]
[1739407317586,2.16947972,2729.1,2729.0,0.73281]
[1739407317787,0.46447972,2729.1,2729.0,0.73281]
[1739407319791,0.46447972,2729.1,2728.9,1.1271]
[1739407319986,0.46447972,2729.1,2729.0,0.73283]
[1739407320386,0.46447972,2729.1,2728.9,1.1271]